Cogmind - Beta 15 @@@ ROGUE MODE // 2025.08.05 @ 03:53:47 Player: Pixel Result: Destroyed by RT-JSW(R) with Subdweller Laser Performance ------------- Evolutions (0) 0 Regions Visited (3) 600 Robots Destroyed (36) 180 Value Destroyed (593) 593 Prototype IDs (12) 240 Alien Tech Used (0) 0 Bonus (167) 167 TOTAL SCORE: 1780 Bonus ------- Follower Combat Kills 167 Cogmind --------- Core Integrity 0/250 Matter 159/300 Energy 93/100 System Corruption 16% Temperature Cool (6) Movement Walking (120) Location -10/Subcaves Parts ------- > --- POWER (1) -------- (None) > --- PROPULSION (2) --- Aluminum Leg Aluminum Leg > --- UTILITY (2) ------ Large Storage Unit > --- WEAPON (2) ------- (None) > --- INVENTORY (15) --- Makeshift Flight Unit Small Storage Unit Sensor Array Makeshift Utility Shielding Weapon Shielding Beam Cannon Assault Rifle Bore Cannon Datajack Ripper Peak State ------------ > --- POWER ------------ (None) > --- PROPULSION ------- Aluminum Leg Aluminum Leg > --- UTILITY ---------- Large Storage Unit Experimental Sensor Array > --- WEAPON ----------- (None) > --- INVENTORY -------- Makeshift Flight Unit Small Storage Unit Sensor Array Makeshift Utility Shielding Weapon Shielding Beam Cannon Assault Rifle Bore Cannon Datajack Ripper [Rating: 14] Favorites ----------- Power Light Nuclear Core Engine Light Ion Engine Power Core Light Nuclear Core Propulsion Light Treads Treads Light Treads Leg Aluminum Leg Wheel Compact Wheel Utility Large Storage Unit Device Experimental Sensor Array Storage Large Storage Unit Processor Signal Interpreter Weapon Assault Rifle Energy Gun EM Pulse Gun Energy Cannon Beam Cannon Ballistic Gun Assault Rifle Launcher Rocket Launcher Build | -11 -10 -10 -10 ------- Run | Yrd Mat Min Sub Slots Evolved . | . . . . Power . | . . . . Propulsion . | . . . . Utility . | . . . . Weapon . | . . . . Parts Attached 22 | 6 7 7 2 Power 4 | 1 1 2 . Engine 3 | 1 1 1 . Core 1 | . . 1 . Reactor . | . . . . Propulsion 6 | 2 . 4 . Treads 2 | 2 . . . Leg 2 | . . 2 . Wheel 2 | . . 2 . Hover . | . . . . Flight . | . . . . Utility 5 | 1 3 . 1 Device 1 | . . . 1 Storage 3 | 1 2 . . Processor 1 | . 1 . . Hackware . | . . . . Protection . | . . . . Artifact . | . . . . Weapon 7 | 2 3 1 1 Energy Gun 1 | 1 . . . Energy Cannon 1 | . 1 . . Ballistic Gun 3 | 1 1 1 . Ballistic Cannon . | . . . . Launcher 2 | . 1 . 1 Special Weapon . | . . . . Impact Weapon . | . . . . Slashing Weapon . | . . . . Piercing Weapon . | . . . . Special Melee Weapon . | . . . . Unidentified Prototypes 1 | . . . 1 Parts Lost 13 | . 1 4 8 Power 3 | . . 1 2 Propulsion 3 | . . 2 1 Utility 2 | . . . 2 Weapon 5 | . 1 1 3 Highest Loss Streak 4 | . 1 2 4 To Critical Strikes . | . . . . Average Backups 11 | 2 9 11 13 Power . | . . . . Propulsion 2 | 2 4 2 2 Utility 3 | . 2 3 4 Weapon 3 | . 2 3 4 Tool/Special . | . . . . Unused Backups 7 | . . . 7 Power . | . . . . Propulsion 1 | . . . 1 Utility 3 | . . . 3 Weapon 2 | . . . 2 Tool/Special 1 | . . . 1 Average Slot Usage (%) 97 | . 96 99 98 Engine 8 | . 14 10 1 Core 5 | . . 3 11 Treads 10 | . 27 2 . Leg 2 | . . . 7 Wheel 14 | . . 24 20 Storage 14 | . 14 14 14 Processor 12 | . 10 14 13 Energy Gun 2 | . 5 . . Ballistic Gun 22 | . 21 28 19 Launcher 2 | . . . 7 Peak Build Rating 14 | 6 8 11 14 Average Rating 9 | 4 7 8 12 On Entrance 6 | . 6 8 11 Naked Turns . | . . . . Heaviest Build 89 | 14 89 29 31 Greatest Support 40 | 40 40 40 26 Greatest Overweight (x) 8 | . 8 1 1 Average Overweight (x) . | . . . . Largest Inventory Capacity 25 | 8 25 15 15 Average Capacity 14 | 6 15 15 15 Most Carried 14 | 4 11 13 14 Average Carried 11 | 2 9 11 13 Final Capacity 15 | 8 15 15 15 Final Carried 13 | 4 11 13 10 Class Distribution -------------------- 100% | Mutant Dominant Class ---------------- Mutant | -10/Materials Mutant | -10/Mines Mutant | -10/Subcaves Resources | -11 -10 -10 -10 ----------- Run | Yrd Mat Min Sub Matter Collected 832 | 204 297 135 196 Remotely . | . . . . Salvage Created 873 | . 612 99 162 Parts 73 | . 45 12 16 Haulers Intercepted 1 | . 1 . . Recyclers Shooed 2 | . 2 . . Parts Field Recycled . | . . . . Retrieved Matter . | . . . . Parts Self-Destructed 19 | . . . 19 Prevented . | . . . . Kills | -11 -10 -10 -10 ------- Run | Yrd Mat Min Sub Combat Hostiles Destroyed 27 | . 13 7 7 Guns 18 | . 9 7 2 AOE 9 | . 4 . 5 Classes Destroyed 7 | . 6 . 1 Worker 4 | . 4 . . Hauler 1 | . 1 . . Recycler 1 | . 1 . . Watcher 3 | . 3 . . Swarmer 18 | . 8 7 3 Grunt 5 | . 5 . . Subdweller 4 | . . . 4 Best Kill Streak 5 | . 5 3 3 Combat Bots Only 3 | . 3 3 3 Max Kills in Single Turn 3 | . 3 1 2 Gunslinging . | . . . . Exploded 3 | . 3 . 2 Melee . | . . . . Uniques/NPCs Destroyed . | . . . . Combat | -11 -10 -10 -10 -------- Run | Yrd Mat Min Sub Hostile Shots Fired 147 | . 67 40 40 Missed 48 | . 21 10 17 Hits 99 | . 46 30 23 Projectile 99 | . 46 30 23 Critical Strikes 6 | . 4 1 1 Damage Taken 1565 | . 507 326 732 Core 269 | . 132 57 80 Absorbed by Shields . | . . . . Core Remaining (%) 100 | 100 . . . Volleys Fired 88 | . 37 23 28 Largest 2 | . 2 2 2 Hottest 60 | . 60 40 53 Shots Fired 153 | . 72 44 37 Gun 130 | . 71 44 15 Cannon . | . . . . Launcher 23 | . 1 . 22 Special . | . . . . Kinetic 96 | . 37 44 15 Thermal . | . . . . Explosive 23 | . 1 . 22 Electromagnetic 34 | . 34 . . Robot Hit Streak 11 | . 11 5 3 Robot Miss Streak 3 | . 3 3 1 Penetration Max . | . . . . Secondary Targets 4 | . 1 3 . Max Gunslinging Chain 1 | . 1 1 . Shots Hit Robots 85 | . 46 26 13 Core Hits 49 | . 28 8 13 Critical Kills . | . . . . Critical Parts Destroyed 1 | . . 1 . Critical Strikes 1 | . . 1 . Destroy 1 | . . 1 . Melee Attacks . | . . . . Impact . | . . . . Slashing . | . . . . Piercing . | . . . . Sneak Attacks . | . . . . Combat Hostiles . | . . . . Follow-up Attacks . | . . . . Damage Inflicted 1711 | . 789 411 511 Guns 1023 | . 579 347 97 Cannons . | . . . . Explosions 614 | . 200 . 414 Melee . | . . . . Ramming 74 | . 10 64 . Kinetic 678 | . 234 347 97 Thermal 49 | . 49 . . Explosive 565 | . 151 . 414 Electromagnetic 345 | . 345 . . Impact . | . . . . Slashing . | . . . . Piercing . | . . . . Highest Corruption 16 | . . . 16 Average Corruption 16 | . . . 16 Corruption Purged . | . . . . Corruption Blocked . | . . . . Effects 5 | . . . 5 Message Errors 2 | . . . 2 Matter Fused 1 | . . . 1 Energy Discharges 1 | . . . 1 Misdirections 1 | . . . 1 Overload Shots . | . . . . Overflow Damage 9 | . . . 9 Projectiles . | . . . . Explosions 9 | . . . 9 Melee . | . . . . Knockbacks . | . . . . Impact . | . . . . Kinetic . | . . . . Secondary . | . . . . Self-Inflicted Damage 167 | . 55 30 82 Shots 6 | . 2 . 4 Rammed 8 | . 1 7 . Targets Rammed 8 | . 1 7 . Kicked . | . . . . Crushed . | . . . . Highest Temperature 63 | . 63 7 2 Average Temperature 26 | . 28 4 2 Received Heat Transfer 345 | . 147 66 132 Siege Activations . | . . . . Martial Activations . | . . . . Shielding Activations . | . . . . Robots Disrupted . | . . . . Combat Hostiles . | . . . . Robots Corrupted . | . . . . Combat Hostiles . | . . . . Parts Fried . | . . . . Impact Corruptions . | . . . . Robots Melted . | . . . . Combat Hostiles . | . . . . Parts Melted . | . . . . Heat Transferred 100 | . 100 . . Parts Sabotaged . | . . . . Parts Stolen . | . . . . Parts Stripped . | . . . . Power Chain Reactions 2 | . 2 . . Alert | -11 -10 -10 -10 ------- Run | Yrd Mat Min Sub Maximum Alert Level . | . . . . Low Security (%) 100 | 100 100 100 . Level 1 . | . . . . Level 2 . | . . . . Level 3 . | . . . . Level 4 . | . . . . Level 5 . | . . . . High Security . | . . . . Max Security . | . . . . Peak Influence 192 | . 192 142 . Initial . | . . . . Average 52 | . 56 50 . Influence Increases 923 | . 397 412 114 Destroy 0b10 Robot/C 600 | . 260 260 80 Destroy 0b10 Robot/NC 45 | . 45 . . Destroy Leader 108 | . 58 50 . Allied During Kill 16 | . . 12 4 Disable Machine 15 | . 15 . . Destroy Structure 19 | . 19 . . Lose Combat Pursuer 120 | . . 90 30 Influence Decreases 923 | . 397 366 160 Entered New Map 25 | . . . 25 Time Decay 818 | . 387 336 95 Lost Part 60 | . 10 30 20 Lost Ally 20 | . . . 20 Squads Dispatched 1 | . 1 . . Investigation 1 | . 1 . . Extermination . | . . . . Reinforcement . | . . . . Assault . | . . . . Garrison . | . . . . Intercept . | . . . . Searches Triggered . | . . . . Construction Impeded . | . . . . Haulers Reinforced . | . . . . Active Scanning Responses . | . . . . Cargo Convoy Interrupts . | . . . . Stealth | -11 -10 -10 -10 --------- Run | Yrd Mat Min Sub Distress Signals 1 | . 1 . . Communications Jammed . | . . . . Distress Signals . | . . . . Times Spotted 49 | . 19 19 11 Peak Tracking Total 6 | . 4 3 6 Tactical Retreats 5 | . . 4 1 Traps | -11 -10 -10 -10 ------- Run | Yrd Mat Min Sub Traps Triggered 5 | . 4 . 1 Indirectly . | . . . . Trap Hack Attempts . | . . . . Triggered . | . . . . Disarmed . | . . . . Reprogrammed . | . . . . Reused . | . . . . Traps Extracted . | . . . . Installed . | . . . . Triggered . | . . . . Machines | -11 -10 -10 -10 ---------- Run | Yrd Mat Min Sub Machines Disabled 4 | . 1 . 3 Max in Single Turn 3 | . 1 . 3 Machines Repaired . | . . . . Machines Dismantled . | . . . . Machines Sabotaged . | . . . . Overloaded Fab Kills . | . . . . Hacking | -11 -10 -10 -10 --------- Run | Yrd Mat Min Sub Machines Accessed 1 | . . . 1 Terminals . | . . . . Fabricators . | . . . . Repair Stations . | . . . . Recycling Units . | . . . . Scanalyzers . | . . . . Garrison Access . | . . . . Total Hacks 3 | . . . 3 Successful 3 | . . . 3 Failed . | . . . . Catastrophic . | . . . . Database Lockouts . | . . . . Manual . | . . . . Terminals . | . . . . Fabricators . | . . . . Repair Stations . | . . . . Recycling Units . | . . . . Scanalyzers . | . . . . Garrison Access . | . . . . Terminal Hacks 3 | . . . 3 Record 2 | . . . 2 Proto ID Catalog 1 | . . . 1 Fabricator Hacks . | . . . . Repair Station Hacks . | . . . . Recycling Unit Hacks . | . . . . Scanalyzer . | . . . . Garrison Access Hacks . | . . . . Unauthorized Hacks . | . . . . Terminals . | . . . . Fabricators . | . . . . Repair Stations . | . . . . Recycling Units . | . . . . Scanalyzers . | . . . . Garrison Access . | . . . . Data Cores Recovered . | . . . . Used . | . . . . Hacking Detections . | . . . . Full Trace Events . | . . . . Feedback Events . | . . . . Feedback Blocked . | . . . . Robot Schematics Acquired . | . . . . Robots Built . | . . . . Authchips . | . . . . Time . | . . . . Total Robot Build Rating . | . . . . Part Schematics Acquired . | . . . . Parts Built . | . . . . Authchips . | . . . . Time . | . . . . Total Part Build Rating . | . . . . Parts Repaired . | . . . . Time . | . . . . Parts Recycled . | . . . . Recycled Matter . | . . . . Retrieved Matter . | . . . . Retrieved Components . | . . . . Parts Scanalyzed . | . . . . Part Schematics Acquired . | . . . . Parts Damaged . | . . . . Bothacking | -11 -10 -10 -10 ------------ Run | Yrd Mat Min Sub Used RIF Installer . | . . . . Robots Hacked . | . . . . Non-combat . | . . . . Combat . | . . . . Robot Hacks Applied . | . . . . Relay Couplers Released . | . . . . Fabnet Peak Effective % . | . . . . Robots Rewired . | . . . . Allies Hacked . | . . . . Hacks Repelled . | . . . . Allies | -11 -10 -10 -10 -------- Run | Yrd Mat Min Sub Total Allies 2 | . . 2 . Largest Group 2 | . . 2 1 Highest-Rated Group 46 | . . 46 31 Highest-Rated Ally 31 | . . 31 31 Total Orders . | . . . . Ally Attacks 18 | . . 14 4 Total Damage 269 | . . 229 40 Kills 8 | . . 7 1 Allies Corrupted . | . . . . Allies Melted . | . . . . Intel | -11 -10 -10 -10 ------- Run | Yrd Mat Min Sub Active Infowar (turns) 56 | . . . 56 Sensors 56 | . . . 56 Robot Analysis Total . | . . . . Derelict Logs Recovered 2 | . . 1 1 Drone Launches . | . . . . Drone Recoveries . | . . . . Exploration | -11 -10 -10 -10 ------------- Run | Yrd Mat Min Sub Turns Passed 3963 | 81 1442 1023 1417 Spaces Moved 2730 | 45 789 796 1100 Core 7 | 5 2 . . Treads 876 | 40 787 49 . Legs 177 | . . 1 176 Wheels 1670 | . . 746 924 Hover . | . . . . Flight . | . . . . Fastest Speed 50 | 50 160 105 105 Average Speed 128 | 147 162 108 118 Slowest Speed 450 | 160 450 190 190 Overloaded Moves . | . . . . Propulsion Burnouts . | . . . . Robots Hopped . | . . . . Potential Cave-ins . | . . . . Cave-ins Triggered 1 | . . . 1 Exploration Rate (%) 61 | 4 97 101 44 Regions Visited 3 Branch Regions 2 Pre-discovered Areas 1 | . . 1 . Known Exits Taken 2 | . 1 1 . Unknown Exits Taken 1 | 1 . . . Scrap Searched 3 | . . 1 2 Spaces Dug 32 | . . . 32 Terrain Destroyed 173 | . 17 . 156 Melee . | . . . . Projectile . | . . . . AOE 173 | . 17 . 156 Terrain Rammed . | . . . . Walls Destroyed . | . . . . Machines Disabled . | . . . . Actions | -11 -10 -10 -10 --------- Run | Yrd Mat Min Sub Total 3016 | 60 871 909 1176 Wait 126 | . 16 71 39 Move 2727 | 44 788 795 1100 Hop . | . . . . Pick Up 34 | 10 16 6 2 Fast Attach . | . . . . Attach 22 | 6 8 4 4 Detach . | . . . . Swap 9 | . 4 3 2 Drop 2 | . 1 . 1 Fire 88 | . 37 23 28 Melee . | . . . . Ram 7 | . . 7 . Kick . | . . . . Crush 1 | . 1 . . Escape Stasis . | . . . . Rewire . | . . . . Trap . | . . . . Miscellaneous . | . . . . Route ------- -11/Scrapyard -10/Materials (discovered 4 exits: *Mat x3 / *Min) -10/Mines (discovered 3 exits: *Mat x2 / *Sub) -10/Subcaves (discovered 2 exits: *Mat / [*Rec]) History --------- Turn | Location | Event 5 | -11/Scrapyard | Discovered new exit (range 16) 82 | -11/Scrapyard | Entered Materials 247 | -10/Materials | Discovered new exit (range 5) 313 | -10/Materials | Build established: Mutant 383 | -10/Materials | Discovered new exit (range 6) 428 | -10/Materials | Identified exit to Mines 492 | -10/Materials | Discovered new exit (range 5) 513 | -10/Materials | Identified exit to Materials 650 | -10/Materials | Discovered exit to Materials (range 14) 690 | -10/Materials | Core integrity fell below 50% 1524 | -10/Materials | Entered Mines 1735 | -10/Mines | Found a damaged Exp. Sensor Array with a note attached 1737 | -10/Mines | Found Prototype Device 1990 | -10/Mines | Learned location of Zion (-7) 2014 | -10/Mines | Received a Rocket Launcher from a helpful Derelict 2070 | -10/Mines | A weapon hastily lodged in a ceiling crevice suddenly fell to the ground 2248 | -10/Mines | Discovered exit to Materials (range 9) 2417 | -10/Mines | Discovered exit to Materials (range 3) 2529 | -10/Mines | Discovered new exit (range 9) 2538 | -10/Mines | Identified exit to Subcaves 2547 | -10/Mines | Entered Subcaves 2547 | -10/Subcaves | Accompanied by 1 ally 2548 | -10/Subcaves | Approached by a straggling Scientist 2552 | -10/Subcaves | Led the pair of lost Derelicts to an unsafe place 2779 | -10/Subcaves | Shifting Twisted Machinery released Flamer 3286 | -10/Subcaves | Visited 4L-MR0's lab 3580 | -10/Subcaves | Shifting Twisted Machinery released Ripper 3581 | -10/Subcaves | Discovered new exit (range 12) 3582 | -10/Subcaves | Core integrity fell below 20% 3728 | -10/Subcaves | Shifting Twisted Machinery released Sub. Laser 3745 | -10/Subcaves | Discovered new exit (range 9) 3779 | -10/Subcaves | Learned 2 Materials zone layouts 3790 | -10/Subcaves | Identified exit to Materials 3902 | -10/Subcaves | Crushed by falling debris 3902 | -10/Subcaves | System corruption reached 10% 3903 | -10/Subcaves | Identified Exp. Sensor Array 3933 | -10/Subcaves | Lost 4 parts (1p1u2w) 3964 | -10/Subcaves | Destroyed by RT-JSW(R) with Subdweller Laser Last Messages --------------- Crushed by falling debris. [Achievement: Unlikely Earthworm] Lgt. Ion Engine destroyed. System corrupted by crushing effect (+5). Grenade Launcher destroyed. System corrupted by crushing effect (+1). Signal Interpreter destroyed. System corrupted by crushing effect (+5). Assault Rifle destroyed. System corrupted by crushing effect (+5). [Achievement: System Compromised] Identified Exp. Sensor Array. [Achievement: Risk Taker] System corrupted: Matter fused (-10). The unstable cave ceiling collapses. DB0ALHWI|N>YFUZ8DE7=8RXKZ9U0MSM #Q System corrupted: Energy discharge (-33). The unstable cave ceiling collapses. RXNFX53|<=L0T 2O EO1N5FX,MEFFU0K83HUW Exp. Sensor Array destroyed. Map ----- +----------------------------------------------------+ | ?????????????????????????????????????????????????? | | ?????????????????????????????????????????????????? | | ?????????????????????????????????????????????????? | | ?????????????????????????????????????????????????? | | ?????????????????????????????????????????????????? | | ?????????????????????????????????????????????????? | | ?????????????????????????????????????????????????? | | ?????????????????????????????????????????????????? | | ????????????????????????????????? ##???????????? | | ????????????????????????????????? ???????????? | | ????????????????????????????????? ???????????? | | ????????????????????????????????? "???????????? | | ?????????????????????????????????# #???????????? | | ????????????????????????????????##"" ##??????????? | | ????????????????????????????????# " #??????????? | | ?????????????????????????????????" " #???????????? | | ????????????????????????????????##"" #??##???????? | | ??????????????????????????????###" #?##"##??????? | | ????????????????????? #####??## ###"""#??????? | | ?????????????????????""#""#??#"""" #"""######## | | ?????????????????????? """"??#""## "" ## # # | | ???????????????????????# "??##"## & # | | ???????????????????????# ##?#""" ## # %= # | | ???????????????????????#"""####" ### ] | | ??????????# ##### ### ### | | ??????????????# @ ## # | | ??????????????# ## R #### # " | | ?????????????????????### ""R"" ###??### ## # | | ???????????????????????##""" "##??????############ | | ????????????????????????## " #??????????????????? | | ?????????????????????????# " ##??????????????????? | | ?????????????????????????##" #???????????????????? | | ?????????????????????????? #???????????????????? | | ??????????????????????????" #???????????????????? | | ??????????????????????????"""#???????????????????? | | ??????????????????????????? #????????????????????? | | ???????????????????????????#?????????????????????? | | ?????????????????????????????????????????????????? | | ?????????????????????????????????????????????????? | | ?????????????????????????????????????????????????? | | ?????????????????????????????????????????????????? | | ?????????????????????????????????????????????????? | | ?????????????????????????????????????????????????? | | ?????????????????????????????????????????????????? | | ?????????????????????????????????????????????????? | | ?????????????????????????????????????????????????? | | ???????????????????????????????????#########?????? | | ???????????????????????????????????# # ##????? | | ???????????????????????????????????## #####? | | ????????????????????????????????????# ## ## | +----------------------------------------------------+ Best States ------------- Heat Dissipation 25 Energy Generation 14 Energy Capacity 250 Matter Stores 300 Matter Capacity 300 Sight Range 16 Robot Scan Range 20 Terrain Scan Density 10 Evasion (%) 55 Recoil Reduction 2 Item Schematics ----------------- None Robot Schematics ------------------ None Fabricated ------------ Nothing Repaired ---------- Nothing Alien Tech Used ----------------- None Achievements -------------- Loot Pinata Risk Taker System Compromised Unlikely Earthworm Challenges ------------ None Game ------ Seed ImprovedImpulseBuckler Manual? 0 Play Time 00:29:10 Cumulative 2.9 hours Start 2025.08.05 @ 03:27:25 End 2025.08.05 @ 03:53:47 Sessions 1 Manual Loads 0 Difficulty Rogue Special Mode None Game No. 6 Rogue 6 Adventurer 0 Explorer 0 Win Type - Total 0 Types 0/0/0/0/0/0/0/0/0/0 Lore% 7 Gallery% 6 Achievement% 7 Wizard Run 0 Options --------- Layout 1 ASCII 0 Keyboard 0 Movement Mouse Keybinds 0 Fullscreen 0 Font 18/SmallcapsGlow Map View 76x50 Zoom Use 0% Tactical HUD 0 Map Filters NONE Filters NONE Steam 0 RUN: d1589c2c-1125-4cf0-8fcf-988306af4eee